fUST/lending_fUST_20250218
["ID","MTS","AMOUNT","RATE_DAILY","PERIOD"]
[353417419,1739819454488,-1251.21,0.00014438,2]
[353417420,1739819454498,-2007.1,0.00014438,2]
[353417421,1739819454507,-2214.17405726,0.00014502,2]
[353417422,1739819454517,-190.8,0.0001452,2]
[353417423,1739819454527,-500.0,0.0001452,2]
[353417424,1739819454536,-365.96,0.0001452,2]
[353417425,1739819454545,-500.0,0.0001452,2]
[353417426,1739819454555,-500.0,0.0001452,2]
[353417427,1739819454564,-500.0,0.0001452,2]
[353417428,1739819454574,-506.27,0.0001452,2]
[353417429,1739819454584,-4007.59,0.0001452,2]
[353417430,1739819454594,-500.0,0.0001452,2]
[353417431,1739819454603,-675.35,0.0001452,2]
[353417432,1739819454612,-635.65,0.0001452,2]
[353417433,1739819454622,-500.0,0.0001452,2]
[353417434,1739819454632,-6654.72,0.0001452,2]
[353417435,1739819454643,-500.0,0.0001452,2]
[353417436,1739819454652,-500.0,0.0001452,2]
[353417437,1739819454662,-1430.95,0.0001452,2]
[353417438,1739819454671,-612.44,0.0001452,2]
[353417439,1739819454681,-522.66,0.0001452,2]
[353417440,1739819454690,-500.0,0.0001452,2]
[353417441,1739819454700,-642.54,0.0001452,2]
[353417442,1739819454709,-500.0,0.0001452,2]
[353417443,1739819454720,-767.72,0.0001452,2]
[353417444,1739819454729,-500.0,0.0001452,2]
[353417445,1739819454738,-520.88,0.0001452,2]
[353417446,1739819454748,-500.0,0.0001452,2]
[353417447,1739819454758,-561.16,0.0001452,2]
[353417448,1739819454767,-500.0,0.0001452,2]
[353417449,1739819454776,-500.0,0.0001452,2]
[353417450,1739819454787,-500.0,0.0001452,2]
[353417451,1739819454796,-637.44,0.0001452,2]
[353417452,1739819454807,-1131.08,0.0001452,2]
[353417453,1739819454819,-500.0,0.0001452,2]
[353417454,1739819454829,-6744.16,0.0001452,2]
[353417455,1739819454840,-1097.94,0.0001452,2]
[353417456,1739819454851,-3166.03,0.0001452,2]
[353417457,1739819454860,-686.26,0.0001452,2]
[353417458,1739819454870,-500.0,0.0001452,2]
[353417459,1739819454880,-598.85,0.0001452,2]
[353417460,1739819454891,-534.8,0.0001452,2]
[353417461,1739819454902,-574.0,0.0001452,2]
[353417462,1739819454913,-500.0,0.0001452,2]
[353417463,1739819454923,-1333.89,0.0001452,2]
[353417464,1739819454933,-500.0,0.0001452,2]
[353417465,1739819454944,-500.0,0.0001452,2]
[353417466,1739819454954,-671.14,0.0001452,2]
[353417467,1739819454966,-500.0,0.0001452,2]
[353417468,1739819454978,-506.98,0.0001452,2]
[353417469,1739819454989,-500.0,0.0001452,2]
[353417470,1739819454999,-1606.27,0.0001452,2]
[353417471,1739819455009,-1251.21,0.0001452,2]
[353417472,1739819455019,-2007.1,0.0001452,2]
[353417473,1739819455028,-682.81551446,0.00014533,2]
[353417474,1739819455038,-500.0,0.00014602,2]
[353417475,1739819455048,-500.0,0.00014602,2]
[353417476,1739819455058,-258.668222,0.00014602,2]
[353417477,1739819455068,-500.0,0.00014602,2]
[353417478,1739819455077,-500.0,0.00014602,2]
[353417479,1739819455087,-4007.59,0.00014602,2]
[353417480,1739819455097,-151.0,0.00014602,2]
[353417481,1739819455107,-151.0,0.00014602,2]
[353417482,1739819455118,-500.0,0.00014602,2]
[353417483,1739819455128,-675.35,0.00014602,2]
[353417484,1739819455138,-635.65,0.00014602,2]
[353417485,1739819455148,-500.0,0.00014602,2]
[353417486,1739819455158,-6654.72,0.00014602,2]
[353417487,1739819455167,-500.0,0.00014602,2]
[353417488,1739819455178,-500.0,0.00014602,2]
[353417489,1739819455187,-612.44,0.00014602,2]
[353417490,1739819455197,-1430.95,0.00014602,2]
[353417491,1739819455207,-500.0,0.00014602,2]
[353417492,1739819455219,-500.0,0.00014602,2]
[353417493,1739819455228,-767.72,0.00014602,2]
[353417494,1739819455238,-500.0,0.00014602,2]
[353417495,1739819455247,-500.0,0.00014602,2]
[353417496,1739819455257,-561.16,0.00014602,2]
[353417497,1739819455266,-514.22,0.00014602,2]
[353417498,1739819455276,-500.0,0.00014602,2]
[353417499,1739819455287,-406.47,0.00014602,2]
[353417500,1739819455297,-637.44,0.00014602,2]
[353417501,1739819455307,-1131.08,0.00014602,2]
[353417502,1739819455316,-500.0,0.00014602,2]
[353417503,1739819455326,-6744.16,0.00014602,2]
[353417504,1739819455336,-1097.94,0.00014602,2]
[353417505,1739819455345,-3166.03,0.00014602,2]
[353417506,1739819455355,-686.26,0.00014602,2]
[353417507,1739819455365,-500.0,0.00014602,2]
[353417508,1739819455374,-598.85,0.00014602,2]
[353417509,1739819455384,-534.8,0.00014602,2]
[353417510,1739819455393,-574.0,0.00014602,2]
[353417511,1739819455403,-500.0,0.00014602,2]
[353417512,1739819455412,-1333.89,0.00014602,2]
[353417513,1739819455422,-500.0,0.00014602,2]
[353417514,1739819455441,-500.0,0.00014602,2]
[353417515,1739819455451,-671.14,0.00014602,2]
[353417516,1739819455460,-500.0,0.00014602,2]
[353417517,1739819455472,-506.98,0.00014602,2]
[353417518,1739819455482,-500.0,0.00014602,2]
[353417519,1739819455491,-1606.27,0.00014602,2]
[353417520,1739819455501,-1251.21,0.00014602,2]
[353417521,1739819455510,-2007.1,0.00014602,2]
[353417522,1739819455519,-682.81551446,0.00014633,2]
[353417523,1739819455528,-167.17528665,0.00014651,2]
[353417524,1739819455538,-1974.61630207,0.00014667,2]
[353417525,1739819455547,-1974.61630207,0.00014667,2]
[353417526,1739819455556,-1974.61630207,0.00014667,2]
[353417527,1739819455565,-1974.61630207,0.00014667,2]
[353417528,1739819455574,-1974.61630207,0.00014667,2]
[353417529,1739819455583,-1974.61630207,0.00014667,2]
[353417530,1739819455592,-1974.61630207,0.00014667,2]
[353417531,1739819455601,-1974.61630207,0.00014667,2]
[353417532,1739819455610,-1974.61630207,0.00014667,2]
[353417533,1739819455619,-1974.61630207,0.00014667,2]
[353417534,1739819455630,-1974.61630207,0.00014667,2]
[353417535,1739819455639,-1974.61630207,0.00014667,2]
[353417536,1739819455648,-1974.61630207,0.00014667,2]
[353417537,1739819455658,-1974.61630207,0.00014667,2]
[353417538,1739819455667,-1974.61630207,0.00014667,2]
[353417539,1739819455676,-1974.61630207,0.00014667,2]
[353417540,1739819455686,-1974.61630207,0.00014667,2]
[353417541,1739819455697,-1974.61630207,0.00014667,2]
[353417542,1739819455706,-1974.61630207,0.00014667,2]
[353417543,1739819455717,-1974.61,0.00014667,2]
[353417544,1739819455726,-500.0,0.00014684,2]
[353417545,1739819455736,-500.0,0.00014684,2]
[353417546,1739819455745,-500.0,0.00014684,2]
[353417547,1739819455755,-500.0,0.00014684,2]
[353417548,1739819455764,-4007.59,0.00014684,2]
[353417549,1739819455773,-500.0,0.00014684,2]
[353417550,1739819455782,-675.35,0.00014684,2]
[353417551,1739819455791,-635.65,0.00014684,2]
[353417552,1739819455800,-500.0,0.00014684,2]
[353417553,1739819455810,-6654.72,0.00014684,2]
[353417554,1739819455821,-500.0,0.00014684,2]
[353417555,1739819455832,-500.0,0.00014684,2]
[353417556,1739819455841,-612.44,0.00014684,2]
[353417557,1739819455850,-1430.95,0.00014684,2]
[353417558,1739819455860,-165.74,0.00014684,2]
[353417559,1739819455870,-500.0,0.00014684,2]
[353417560,1739819455880,-767.72,0.00014684,2]
[353417561,1739819455890,-500.0,0.00014684,2]
[353417562,1739819455899,-500.0,0.00014684,2]
[353417563,1739819455909,-561.16,0.00014684,2]
[353417564,1739819455919,-500.0,0.00014684,2]
[353417565,1739819455929,-637.44,0.00014684,2]
[353417566,1739819455939,-151.0,0.00014684,2]
[353417567,1739819455948,-1131.08,0.00014684,2]
[353417568,1739819455957,-222.16,0.00014684,2]
[353417569,1739819455968,-6744.16,0.00014684,2]
[353417570,1739819455978,-1097.94,0.00014684,2]
[353417571,1739819455988,-3166.03,0.00014684,2]
[353417572,1739819455997,-686.26,0.00014684,2]
[353417573,1739819456006,-458.02045219,0.00014684,2]
[353417574,1739819456016,-598.85,0.00014684,2]
[353417575,1739819456026,-534.8,0.00014684,2]
[353417576,1739819456035,-574.0,0.00014684,2]
[353417577,1739819456045,-500.0,0.00014684,2]
[353417578,1739819456055,-1333.89,0.00014684,2]
[353417579,1739819456064,-500.0,0.00014684,2]
[353417580,1739819456074,-500.0,0.00014684,2]
[353417581,1739819456084,-671.14,0.00014684,2]
[353417582,1739819456093,-500.0,0.00014684,2]
[353417583,1739819456103,-506.98,0.00014684,2]
[353417584,1739819456113,-500.0,0.00014684,2]
[353417585,1739819456123,-1251.21,0.00014684,2]
[353417586,1739819456132,-1606.27,0.00014684,2]
[353417587,1739819456141,-2007.1,0.00014684,2]
[353417588,1739819456151,-682.81551446,0.00014733,2]
[353417589,1739819456160,-500.0,0.00014767,2]
[353417590,1739819456170,-500.0,0.00014767,2]
[353417591,1739819456179,-408.1,0.00014767,2]
[353417592,1739819456188,-500.0,0.00014767,2]
[353417593,1739819456197,-4007.59,0.00014767,2]
[353417594,1739819456207,-500.0,0.00014767,2]
[353417595,1739819456217,-675.35,0.00014767,2]
[353417596,1739819456227,-635.65,0.00014767,2]
[353417597,1739819456236,-500.0,0.00014767,2]
[353417598,1739819456246,-6654.72,0.00014767,2]
[353417599,1739819456256,-500.0,0.00014767,2]
[353417600,1739819456266,-582.4,0.00014767,2]
[353417601,1739819456275,-612.44,0.00014767,2]
[353417602,1739819456286,-1430.95,0.00014767,2]
[353417603,1739819456298,-767.72,0.00014767,2]
[353417604,1739819456308,-500.0,0.00014767,2]
[353417605,1739819456318,-500.0,0.00014767,2]
[353417606,1739819456327,-561.16,0.00014767,2]
[353417607,1739819456337,-500.0,0.00014767,2]
[353417608,1739819456347,-637.44,0.00014767,2]
[353417609,1739819456356,-1131.08,0.00014767,2]
[353417610,1739819456366,-6744.16,0.00014767,2]
[353417611,1739819456450,-1097.94,0.00014767,2]
[353417612,1739819456474,-3166.03,0.00014767,2]
[353417613,1739819456484,-686.26,0.00014767,2]
[353417614,1739819456493,-598.85,0.00014767,2]
[353417615,1739819456503,-534.8,0.00014767,2]
[353417616,1739819456513,-574.0,0.00014767,2]
[353417617,1739819456523,-500.0,0.00014767,2]
[353417618,1739819456533,-1333.89,0.00014767,2]
[353417619,1739819456543,-500.0,0.00014767,2]
[353417620,1739819456552,-500.0,0.00014767,2]
[353417621,1739819456562,-671.14,0.00014767,2]
[353417622,1739819456572,-500.0,0.00014767,2]
[353417623,1739819456581,-506.98,0.00014767,2]
[353417624,1739819456590,-500.0,0.00014767,2]
[353417625,1739819456600,-1251.21,0.00014767,2]
[353417626,1739819456609,-1606.27,0.00014767,2]
[353417627,1739819456619,-2007.1,0.00014767,2]
[353417628,1739819456628,-151.0,0.000148,2]
[353417629,1739819456638,-682.81551446,0.00014833,2]
[353417630,1739819456648,-500.0,0.00014849,2]
[353417631,1739819456658,-500.0,0.00014849,2]
[353417632,1739819456668,-500.0,0.00014849,2]
[353417633,1739819456677,-151.0,0.00014849,2]
[353417634,1739819456687,-4007.59,0.00014849,2]
[353417635,1739819456698,-151.0,0.00014849,2]
[353417636,1739819456708,-500.0,0.00014849,2]
[353417637,1739819456721,-675.35,0.00014849,2]
[353417638,1739819456731,-635.65,0.00014849,2]
[353417639,1739819456740,-500.0,0.00014849,2]
[353417640,1739819456750,-6654.72,0.00014849,2]
[353417641,1739819456760,-417.89787749,0.00014849,2]
[353417642,1739819456769,-612.44,0.00014849,2]
[353417643,1739819456778,-1430.95,0.00014849,2]
[353417644,1739819456788,-767.72,0.00014849,2]
[353417645,1739819456797,-500.0,0.00014849,2]
[353417646,1739819456807,-500.0,0.00014849,2]
[353417647,1739819456821,-561.16,0.00014849,2]
[353417648,1739819456830,-500.0,0.00014849,2]
[353417649,1739819456840,-637.44,0.00014849,2]
[353417650,1739819456851,-1131.08,0.00014849,2]
[353417651,1739819456861,-6744.16,0.00014849,2]
[353417652,1739819456870,-1097.94,0.00014849,2]
[353417653,1739819456879,-3166.03,0.00014849,2]
[353417654,1739819456889,-686.26,0.00014849,2]
[353417655,1739819456901,-598.85,0.00014849,2]
[353417656,1739819456911,-534.8,0.00014849,2]
[353417657,1739819456923,-574.0,0.00014849,2]
[353417658,1739819456933,-500.0,0.00014849,2]
[353417659,1739819456943,-1333.89,0.00014849,2]
[353417660,1739819456953,-500.0,0.00014849,2]
[353417661,1739819456967,-269.96,0.00014849,2]
[353417662,1739819456976,-671.14,0.00014849,2]
[353417663,1739819456986,-500.0,0.00014849,2]
[353417664,1739819456995,-506.98,0.00014849,2]
[353417665,1739819457005,-529.37,0.00014849,2]
[353417666,1739819457015,-1251.21,0.00014849,2]
[353417667,1739819457024,-1606.27,0.00014849,2]
[353417668,1739819457033,-2007.1,0.00014849,2]
[353417669,1739819457043,-500.0,0.00014873,2]
[353417670,1739819457053,-500.0,0.00014873,2]
[353417671,1739819457062,-500.0,0.00014873,2]
[353417672,1739819457072,-500.0,0.00014873,2]
[353417673,1739819457083,-165.25175723,0.00014873,2]
[353417674,1739819457093,-2214.17405718,0.0001488,2]
[353417675,1739819457103,-164.79,0.000149,2]
[353417676,1739819457115,-151.0,0.000149,2]
[353417677,1739819457125,-300.0,0.000149,5]
[353417678,1739819457135,-151.0,0.000149,2]
[353417679,1739819457146,-191.17004716,0.000149,2]
[353417680,1739819457156,-141854.19925457,0.000149,2]
[353417681,1739819457172,-51852.78210279,0.000149,2]
[353417682,1739819457184,-270629.76358614,0.000149,2]
[353417683,1739819457196,-846.29326708,0.000149,2]
[353417684,1739819458454,-500.0,0.00013698,2]
[353417685,1739819458464,-500.0,0.00013698,2]
[353417686,1739819458476,-503.13393555,0.00013698,2]
[353417687,1739819458485,-500.0,0.00013698,2]
[353417688,1739819458494,-500.0,0.00013698,2]
[353417689,1739819458503,-500.0,0.00013698,2]
[353417690,1739819458513,-500.0,0.00013698,2]
[353417691,1739819458522,-500.0,0.00013698,2]
[353417692,1739819458531,-501.90753487,0.00013698,2]
[353417693,1739819458540,-500.0,0.00013698,2]
[353417694,1739819458549,-500.0,0.00013698,2]
[353417695,1739819458559,-500.0,0.00013698,2]
[353417696,1739819458569,-500.0,0.0001378,2]
[353417697,1739819458579,-500.0,0.0001378,2]
[353417698,1739819458588,-500.0,0.0001378,2]
[353417699,1739819458598,-482.61,0.0001378,2]
[353417700,1739819458607,-500.0,0.0001378,2]
[353417701,1739819458616,-391.442079,0.00013863,2]
[353417702,1739819458626,-500.0,0.00013863,2]
[353417703,1739819458635,-212.66,0.00013863,2]
[353417704,1739819458645,-500.0,0.00013863,2]
[353417705,1739819458655,-500.0,0.00013945,2]
[353417706,1739819458664,-500.0,0.00014027,2]
[353417707,1739819458674,-50233.24639069,0.000149,2]
[353417708,1739819459225,10961.87596651,0.00019,120]
[353417709,1739819547948,500.0,0.00012585,2]
[353417710,1739819720777,1421.55372591,0.00016723,60]
[353417720,1739820432135,-333.8276439,0.00010578,2]
[353417721,1739820432160,-59.36091966,0.00010685,2]
[353417722,1739820436129,-340.63908034,0.00010685,2]
[353417723,1739820436284,-300.0,0.00012431,2]
[353417724,1739820436309,-101.72836046,0.00012432,2]
[353417725,1739820442117,-281.20317066,0.00012432,2]
[353417726,1739820451119,-2141.61935917,0.00012432,2]
[353417727,1739820516470,1032.40704363,0.00016734,90]
[353417732,1739820562145,-300.0,0.00012431,2]
[353417733,1739820562168,-10927.13691881,0.00012432,2]
[353417734,1739820562191,-12977.5710584,0.00012457,2]
[353417735,1739820562216,-166.0,0.0001264,2]
[353417736,1739820569247,500.0,0.00012585,2]
[353417758,1739820632259,-167.17528665,0.00013497,2]
[353417759,1739820632269,-7438.69753278,0.00013577,2]
[353417760,1739820632280,-500.0,0.00013597,2]
[353417761,1739820632290,-500.0,0.00013597,2]
[353417762,1739820632302,-500.0,0.00013597,2]
[353417763,1739820632312,-500.0,0.00013597,2]
[353417764,1739820632322,-500.0,0.00013597,2]
[353417765,1739820632331,-500.0,0.00013597,2]
[353417766,1739820632341,-500.0,0.00013597,2]
[353417767,1739820632351,-500.0,0.00013597,2]
[353417768,1739820632360,-500.0,0.00013597,2]
[353417769,1739820632370,-500.0,0.00013597,2]
[353417770,1739820632380,-389.25557346,0.00013597,2]
[353417771,1739820632389,-500.0,0.00013597,2]
[353417772,1739820632400,-500.0,0.00013597,2]
[353417773,1739820632409,-500.0,0.00013597,2]
[353417774,1739820632419,-500.0,0.00013597,2]
[353417776,1739820632429,-500.0,0.00013597,2]
[353417778,1739820632439,-500.0,0.00013597,2]
[353417779,1739820632448,-500.0,0.00013597,2]
[353417780,1739820632458,-500.0,0.00013597,2]
[353417781,1739820632467,-500.0,0.00013597,2]
[353417782,1739820632478,-500.0,0.00013597,2]
[353417783,1739820632487,-500.0,0.00013597,2]
[353417784,1739820632497,-500.0,0.00013597,2]
[353417785,1739820632506,-500.0,0.00013597,2]
[353417786,1739820632516,-500.0,0.00013597,2]
[353417787,1739820632527,-500.0,0.00013597,2]
[353417788,1739820632537,-601.21359658,0.00013597,2]
[353417789,1739820632546,-500.0,0.00013597,2]
[353417790,1739820632555,-500.0,0.00013597,2]
[353417791,1739820632564,-500.0,0.00013597,2]
[353417792,1739820632574,-500.0,0.00013597,2]
[353417793,1739820632584,-500.0,0.00013597,2]
[353417794,1739820632594,-500.0,0.00013597,2]
[353417795,1739820632603,-500.0,0.00013597,2]
[353417796,1739820632613,-500.0,0.00013597,2]
[353417797,1739820632623,-500.0,0.00013597,2]
[353417798,1739820632633,-500.0,0.00013597,2]
[353417799,1739820632643,-500.0,0.00013597,2]
[353417800,1739820632653,-500.0,0.00013597,2]
[353417801,1739820632662,-500.0,0.00013597,2]
[353417802,1739820632672,-334.13470136,0.00013597,2]
[353417803,1739820632796,-165.86529864,0.00013597,2]
[353417804,1739820632806,-500.0,0.00013597,2]
[353417805,1739820632816,-500.0,0.00013597,2]
[353417806,1739820632826,-500.0,0.00013597,2]
[353417807,1739820632837,-500.0,0.00013597,2]
[353417808,1739820632846,-500.0,0.00013597,2]
[353417809,1739820632856,-500.0,0.00013597,2]
[353417810,1739820632866,-500.0,0.00013597,2]
[353417811,1739820632875,-500.0,0.00013597,2]
[353417812,1739820632885,-500.0,0.00013597,2]
[353417813,1739820632895,-500.0,0.00013597,2]
[353417814,1739820632904,-500.0,0.00013597,2]
[353417815,1739820632914,-500.0,0.00013597,2]
[353417816,1739820632925,-500.0,0.00013597,2]
[353417817,1739820632935,-500.0,0.00013597,2]
[353417818,1739820632944,-500.0,0.00013597,2]
[353417819,1739820632953,-500.0,0.00013597,2]
[353417820,1739820632963,-500.0,0.00013597,2]
[353417821,1739820632974,-500.0,0.00013597,2]
[353417822,1739820632984,-500.0,0.00013597,2]
[353417823,1739820632994,-500.0,0.00013597,2]
[353417824,1739820633003,-500.0,0.00013597,2]
[353417825,1739820633013,-269.54116813,0.00013597,2]
[353417826,1739820633023,-499.99999999,0.00013597,2]
[353417827,1739820633034,-405.25989384,0.00013598,2]
[353417828,1739820633044,-3000.0,0.00013598,2]
[353417829,1739820633054,-3000.0,0.00013598,2]
[353417830,1739820633064,-38638.37539949,0.00013598,2]
[353417831,1739820633074,-11673.75561442,0.000136,2]
[353417832,1739820633083,-405.25989382,0.0001366,2]
[353417833,1739820633093,-567.65596374,0.00013673,2]
[353417834,1739820633103,-500.75614963,0.00013673,2]
[353417835,1739820633113,-500.0,0.00013673,2]
[353417836,1739820633124,-268.0086625,0.00013673,2]
[353417837,1739820633134,-500.0,0.00013673,2]
[353417838,1739820633145,-513.01338429,0.00013673,2]
[353417839,1739820633155,-500.0,0.00013673,2]
[353417840,1739820633165,-151.01282236,0.00013673,2]
[353417841,1739820633174,-615.25331413,0.00013673,2]
[353417842,1739820633184,-151.10210107,0.00013673,2]
[353417843,1739820633194,-644.58979787,0.00013673,2]
[353417844,1739820633204,-601.06528199,0.00013673,2]
[353417845,1739820633214,-540.56846338,0.00013673,2]
[353417846,1739820633226,-254.35698959,0.00013673,2]
[353417847,1739820633237,-164.56932791,0.00013673,2]
[353417848,1739820633247,-152.23154791,0.00013673,2]
[353417849,1739820633257,-500.87571488,0.00013673,2]
[353417850,1739820633267,-500.0,0.00013673,2]
[353417851,1739820633279,-168.19429647,0.00013673,2]
[353417852,1739820633289,-500.0,0.00013673,2]
[353417853,1739820633299,-500.0,0.00013673,2]
[353417854,1739820633311,-504.78271167,0.00013673,2]
[353417855,1739820633322,-500.0,0.00013673,2]
[353417856,1739820633332,-218.4642954,0.00013673,2]
[353417857,1739820633342,-500.65826783,0.00013673,2]
[353417858,1739820633353,-160.82423238,0.00013673,2]
[353417859,1739820633363,-500.63266847,0.00013673,2]
[353417860,1739820633373,-219.59363206,0.00013673,2]
[353417861,1739820633383,-270.26399332,0.00013673,2]
[353417862,1739820633393,-471.56814116,0.00013673,2]
[353417863,1739820633403,-500.0,0.00013673,2]
[353417864,1739820633415,-215.24843402,0.00013697,2]
[353417865,1739820633425,-500.0,0.00013697,2]
[353417866,1739820633435,-500.0,0.00013697,2]
[353417867,1739820633445,-581.57784403,0.00013697,2]
[353417868,1739820633455,-500.57516036,0.00013698,2]
[353417869,1739820633465,-500.0,0.00013698,2]
[353417870,1739820633476,-500.0,0.00013698,2]
[353417871,1739820633605,-500.0,0.00013698,2]
[353417872,1739820633617,-500.0,0.00013698,2]
[353417873,1739820633627,-500.0,0.00013698,2]
[353417874,1739820633639,-500.0,0.00013698,2]
[353417875,1739820633650,-500.0,0.00013698,2]
[353417876,1739820633660,-614.22994079,0.00013698,2]
[353417877,1739820633671,-505.80435576,0.00013698,2]
[353417878,1739820633682,-500.0,0.00013698,2]
[353417879,1739820633692,-500.0,0.00013698,2]
[353417880,1739820633701,-500.0,0.00013698,2]
[353417881,1739820633711,-509.08411978,0.00013698,2]
[353417882,1739820633721,-500.0,0.00013698,2]
[353417883,1739820633732,-500.0,0.00013698,2]
[353417884,1739820633741,-500.0,0.00013698,2]
[353417885,1739820633750,-534.8244176,0.00013698,2]
[353417886,1739820633759,-521.32,0.00013698,2]
[353417887,1739820633769,-500.0,0.00013698,2]
[353417888,1739820633779,-500.0,0.00013698,2]
[353417889,1739820633790,-500.0,0.00013698,2]
[353417890,1739820633799,-500.0,0.00013698,2]
[353417891,1739820633808,-500.0,0.00013698,2]
[353417892,1739820633818,-500.0,0.00013698,2]
[353417893,1739820633828,-500.0,0.00013698,2]
[353417894,1739820633837,-500.0,0.00013698,2]
[353417895,1739820633846,-500.0,0.00013698,2]
[353417896,1739820633856,-528.53837204,0.00013698,2]
[353417897,1739820633865,-500.0,0.00013698,2]
[353417898,1739820633875,-562.64657204,0.00013698,2]
[353417899,1739820633884,-500.0,0.00013698,2]
[353417900,1739820633894,-500.0,0.00013698,2]
[353417901,1739820633903,-500.0,0.00013698,2]
[353417902,1739820633914,-500.0,0.00013698,2]
[353417903,1739820633925,-500.0,0.00013698,2]
[353417904,1739820633935,-500.0,0.00013698,2]
[353417905,1739820633944,-500.0,0.00013698,2]
[353417906,1739820633954,-500.0,0.00013698,2]
[353417907,1739820633963,-500.0,0.00013698,2]
[353417908,1739820633973,-500.0,0.00013698,2]
[353417909,1739820633983,-500.0,0.00013698,2]
[353417910,1739820633992,-500.99628428,0.00013698,2]
[353417911,1739820634002,-500.0,0.00013698,2]
[353417912,1739820634011,-500.0,0.00013698,2]
[353417913,1739820634021,-500.0,0.00013698,2]
[353417914,1739820634032,-500.0,0.00013698,2]
[353417915,1739820634042,-520.02946328,0.00013698,2]
[353417916,1739820634051,-500.0,0.00013698,2]
[353417917,1739820634060,-500.0,0.00013698,2]
[353417918,1739820634071,-500.0,0.00013698,2]
[353417919,1739820634080,-500.0,0.00013698,2]
[353417920,1739820634090,-500.0,0.00013698,2]
[353417921,1739820634100,-500.0,0.00013698,2]
[353417922,1739820634110,-500.0,0.00013698,2]
[353417923,1739820634120,-500.0,0.00013698,2]
[353417924,1739820634130,-577.43,0.00013698,2]
[353417925,1739820634139,-500.0,0.00013698,2]
[353417926,1739820634149,-500.0,0.00013698,2]
[353417927,1739820634158,-500.0,0.00013698,2]
[353417928,1739820634168,-500.0,0.00013698,2]
[353417929,1739820634178,-500.0,0.00013698,2]
[353417930,1739820634187,-500.0,0.00013698,2]
[353417931,1739820634198,-500.0,0.00013698,2]
[353417932,1739820634207,-500.0,0.00013698,2]
[353417933,1739820634218,-500.0,0.00013698,2]
[353417934,1739820634229,-500.0,0.00013698,2]
[353417935,1739820634239,-500.0,0.00013698,2]
[353417936,1739820634248,-500.0,0.00013698,2]
[353417937,1739820634259,-501.58760502,0.00013698,2]
[353417938,1739820634268,-500.0,0.00013698,2]
[353417939,1739820634278,-500.0,0.00013698,2]
[353417940,1739820634287,-500.22365524,0.00013698,2]
[353417941,1739820634298,-500.36360928,0.00013698,2]
[353417942,1739820634309,-500.0,0.00013698,2]
[353417943,1739820634319,-500.0,0.00013698,2]
[353417944,1739820634328,-500.0,0.00013698,2]
[353417945,1739820634338,-500.0,0.00013698,2]
[353417946,1739820634347,-500.0,0.00013698,2]
[353417947,1739820634357,-500.0,0.00013698,2]
[353417948,1739820634367,-500.0,0.00013698,2]
[353417949,1739820634377,-509.48489708,0.00013698,2]
[353417950,1739820634388,-500.0,0.00013698,2]
[353417951,1739820634399,-500.0,0.00013698,2]
[353417952,1739820634410,-500.0,0.00013698,2]
[353417953,1739820634421,-500.0,0.00013698,2]
[353417954,1739820634432,-500.0,0.00013698,2]